lending/lending_fUSD_20260328
["ID","MTS","AMOUNT","RATE_DAILY","PERIOD"]
[419002858,1774737040672,-150.0,0.00013973,2]
[419002859,1774737040681,-616.12,0.00013989,2]
[419002860,1774737040691,-150.3822,0.00014,2]
[419002861,1774737040701,-509.0,0.00014,2]
[419002862,1774737040710,-14423.09760392,0.0001404,2]
[419002863,1774737040720,-701.08,0.00014069,2]
[419002864,1774737040730,-579.65116737,0.00014087,2]
[419002865,1774737040740,-857.31336757,0.00014115,2]
[419002866,1774737040749,-34013.61326386,0.00014138,2]
[419002867,1774737040759,-500.0,0.00014198,2]
[419002868,1774737040768,-186.616348,0.000142,7]
[419002869,1774737040778,-500.0,0.00014202,2]
[419002870,1774737040788,-500.0,0.00014202,2]
[419002871,1774737040797,-500.0,0.00014202,2]
[419002872,1774737040807,-500.0,0.00014202,2]
[419002873,1774737040817,-500.0,0.00014202,2]
[419002874,1774737040826,-500.0,0.00014202,2]
[419002875,1774737040836,-500.0,0.00014202,2]
[419002876,1774737040846,-500.0,0.00014202,2]
[419002877,1774737040856,-500.0,0.00014202,2]
[419002878,1774737040865,-500.0,0.00014202,2]
[419002879,1774737040875,-500.0,0.00014202,2]
[419002880,1774737040885,-500.0,0.00014202,2]
[419002881,1774737040895,-500.0,0.00014202,2]
[419002882,1774737040905,-647.06402264,0.00014202,2]
[419002883,1774737040914,-500.0,0.00014202,2]
[419002884,1774737040924,-500.0,0.00014202,2]
[419002885,1774737040933,-500.0,0.00014202,2]
[419002886,1774737040942,-500.0,0.00014202,2]
[419002887,1774737040952,-500.0,0.00014202,2]
[419002888,1774737040961,-500.0,0.00014202,2]
[419002889,1774737040970,-500.0,0.00014202,2]
[419002890,1774737040979,-500.0,0.00014202,2]
[419002891,1774737040989,-500.0,0.00014202,2]
[419002892,1774737040998,-500.0,0.00014202,2]
[419002893,1774737041007,-500.0,0.00014202,2]
[419002894,1774737041016,-500.0,0.00014202,2]
[419002895,1774737041026,-500.0,0.00014202,2]
[419002896,1774737041035,-500.0,0.00014202,2]
[419002897,1774737041045,-500.0,0.00014202,2]
[419002898,1774737041055,-500.0,0.00014202,2]
[419002899,1774737041064,-500.0,0.00014202,2]
[419002900,1774737041074,-500.0,0.00014202,2]
[419002901,1774737041083,-500.0,0.00014202,2]
[419002902,1774737041093,-500.0,0.00014202,2]
[419002903,1774737041102,-500.0,0.00014202,2]
[419002904,1774737041112,-500.0,0.00014202,2]
[419002905,1774737041121,-500.0,0.00014202,2]
[419002906,1774737041131,-500.0,0.00014202,2]
[419002907,1774737041140,-500.0,0.00014202,2]
[419002908,1774737041150,-500.0,0.00014202,2]
[419002909,1774737041160,-500.0,0.00014202,2]
[419002910,1774737041169,-500.0,0.00014202,2]
[419002911,1774737041180,-500.0,0.00014202,2]
[419002912,1774737041190,-577.37301328,0.00014202,2]
[419002913,1774737041200,-500.0,0.00014202,2]
[419002914,1774737041210,-500.0,0.00014202,2]
[419002915,1774737041221,-500.0,0.00014202,2]
[419002916,1774737041233,-500.0,0.00014202,2]
[419002917,1774737041243,-500.0,0.00014202,2]
[419002918,1774737041254,-500.0,0.00014202,2]
[419002919,1774737041263,-500.0,0.00014202,2]
[419002920,1774737041273,-479.99718921,0.00014202,2]
[419002921,1774737041284,-503.28066809,0.00014202,2]
[419002922,1774737041294,-500.0,0.00014202,2]
[419002923,1774737041305,-489.0,0.00014202,2]
[419002924,1774737041314,-489.0,0.00014202,2]
[419002925,1774737041324,-500.0,0.00014202,2]
[419002926,1774737041334,-489.0,0.00014202,2]
[419002927,1774737041344,-489.0,0.00014202,2]
[419002928,1774737041354,-489.0,0.00014202,2]
[419002929,1774737041363,-489.0,0.00014202,2]
[419002930,1774737041373,-455.89445997,0.00014202,2]
[419002931,1774737041383,-489.0,0.00014202,2]
[419002932,1774737041392,-489.0,0.00014202,2]
[419002933,1774737041404,-489.0,0.00014202,2]
[419002934,1774737041413,-489.0,0.00014202,2]
[419002935,1774737041424,-489.0,0.00014202,2]
[419002936,1774737041434,-489.0,0.00014202,2]
[419002937,1774737041444,-489.0,0.00014202,2]
[419002938,1774737041454,-489.0,0.00014202,2]
[419002939,1774737041465,-489.0,0.00014202,2]
[419002940,1774737041476,-489.0,0.00014202,2]
[419002941,1774737041487,-489.0,0.00014202,2]
[419002942,1774737041498,-489.0,0.00014202,2]
[419002943,1774737041508,-489.0,0.00014202,2]
[419002944,1774737041517,-489.0,0.00014202,2]
[419002945,1774737041527,-489.0,0.00014202,2]
[419002946,1774737041536,-489.0,0.00014202,2]
[419002947,1774737041546,-489.0,0.00014202,2]
[419002948,1774737041556,-503.30017584,0.00014202,2]
[419002949,1774737041565,-150.0,0.00014247,2]
[419002951,1774737041574,-150.0,0.00014247,2]
[419002953,1774737041584,-150.0,0.00014247,2]
[419002955,1774737041593,-897.4813256,0.00014247,2]
[419002957,1774737041602,-1000.0,0.00014247,2]
[419002959,1774737041611,-507.33813259,0.00014247,2]
[419002961,1774737041621,-1000.0,0.00014247,2]
[419002963,1774737041630,-1000.0,0.00014247,2]
[419002965,1774737041640,-1000.0,0.00014247,2]
[419002967,1774737041649,-957.81885159,0.00014247,2]
[419002969,1774737041659,-1000.0,0.00014247,2]
[419002971,1774737041669,-374.31074407,0.00014247,2]
[419002973,1774737041679,-1000.0,0.00014247,2]
[419002975,1774737041688,-500.4848322,0.00014247,2]
[419002976,1774737041699,-303.76947288,0.00014247,2]
[419002977,1774737041708,-1000.0,0.00014247,2]
[419002978,1774737041718,-1000.0,0.00014247,2]
[419002979,1774737041727,-1000.0,0.00014247,2]
[419002980,1774737041736,-1000.0,0.00014247,2]
[419002981,1774737041745,-1000.0,0.00014247,2]
[419002982,1774737041755,-1000.0,0.00014247,2]
[419002983,1774737041764,-1000.0,0.00014247,2]
[419002984,1774737041773,-1000.0,0.00014247,2]
[419002985,1774737041782,-1000.0,0.00014247,2]
[419002986,1774737041791,-500.92226367,0.00014247,2]
[419002987,1774737041800,-1000.0,0.00014247,2]
[419002988,1774737041810,-500.0,0.00014247,2]
[419002989,1774737041819,-1000.0,0.00014247,2]
[419002990,1774737041829,-1000.85155912,0.00014247,2]
[419002991,1774737041838,-166.66,0.00014274,2]
[419002992,1774737041847,-665.85,0.00014312,2]
[419002993,1774737041856,-1751.3871447,0.00014313,2]
[419002994,1774737041866,-158.05207176,0.00014313,2]
[419002995,1774737041876,-150.0,0.00014313,2]
[419002996,1774737041886,-500.0,0.00014313,2]
[419002997,1774737041896,-150.0,0.00014313,2]
[419002998,1774737041905,-500.0,0.00014313,2]
[419002999,1774737041916,-150.0,0.00014313,2]
[419003000,1774737041925,-500.0,0.00014313,2]
[419003001,1774737041935,-283.63533377,0.00014313,2]
[419003002,1774737041945,-500.0,0.00014313,2]
[419003003,1774737041954,-500.0,0.00014313,2]
[419003004,1774737041964,-500.0,0.00014313,2]
[419003005,1774737041973,-500.0,0.00014313,2]
[419003006,1774737041982,-500.0,0.00014313,2]
[419003007,1774737041991,-500.0,0.00014313,2]
[419003008,1774737042001,-500.0,0.00014313,2]
[419003009,1774737042010,-500.0,0.00014313,2]
[419003010,1774737042020,-150.05356968,0.00014313,2]
[419003011,1774737042029,-500.0,0.00014313,2]
[419003012,1774737042038,-500.0,0.00014313,2]
[419003013,1774737042048,-500.0,0.00014313,2]
[419003014,1774737042057,-381.94618532,0.00014313,2]
[419003015,1774737042067,-499.89808897,0.00014314,2]
[419003016,1774737042077,-1170.15833684,0.00014316,2]
[419003017,1774737042087,-2000.0,0.00014316,2]
[419003018,1774737042096,-2351.0,0.00014339,2]
[419003019,1774737042106,-547.75,0.00014384,2]
[419003020,1774737042115,-14423.09760392,0.00014411,2]
[419003021,1774737042124,-217.36918776,0.00014424,2]
[419003022,1774737042133,-34013.61326386,0.0001449,2]
[419003023,1774737042143,-587.0,0.00014525,2]
[419003024,1774737042152,-579.65116737,0.00014541,2]
[419003025,1774737042161,-318.739375,0.00014546,7]
[419003026,1774737042170,-225.327568,0.00014546,7]
[419003027,1774737042180,-250.0,0.00014704,2]
[419003028,1774737042189,-1600.0,0.00014739,2]
[419003029,1774737042198,-4722.0,0.0001477,2]
[419003030,1774737042207,-433.0,0.00014772,2]
[419003031,1774737042217,-14423.09760392,0.00014782,2]
[419003032,1774737042227,-1500.0,0.00014795,2]
[419003033,1774737042236,-1075.34860635,0.00014795,2]
[419003034,1774737042246,-1500.0,0.00014795,2]
[419003035,1774737042255,-1500.0,0.00014795,2]
[419003036,1774737042265,-1500.0,0.00014795,2]
[419003037,1774737042274,-330.27435382,0.00014795,2]
[419003038,1774737042283,-1500.0,0.00014795,2]
[419003039,1774737042292,-1500.0,0.00014795,2]
[419003040,1774737042302,-1007.43757273,0.00014795,2]
[419003041,1774737042311,-1042.69333386,0.00014795,2]
[419003042,1774737042320,-1000.75630321,0.00014795,2]
[419003043,1774737042330,-678.52624254,0.00014795,2]
[419003044,1774737042339,-1500.0,0.00014795,2]
[419003045,1774737042350,-183.65884113,0.00014795,2]
[419003046,1774737042359,-579.19039319,0.00014795,2]
[419003047,1774737042368,-1500.0,0.00014795,2]
[419003048,1774737042377,-34013.61326386,0.00014843,2]
[419003049,1774737042387,-217.36918776,0.00014916,2]
[419003050,1774737042395,-579.65116737,0.00014994,2]
[419003051,1774737042404,-300.0,0.00015,2]
[419003052,1774737042414,-547.75,0.00015068,2]
[419003053,1774737042424,-14423.09760392,0.00015153,2]
[419003054,1774737042433,-500.0,0.00015193,2]
[419003055,1774737042443,-214.95038261,0.00015193,2]
[419003056,1774737042453,-34013.61326386,0.00015195,2]
[419003057,1774737042462,-500.0,0.00015199,2]
[419003058,1774737042471,-5630.37221752,0.000152,2]
[419003059,1774737042481,-1000.0,0.00015342,2]
[419003060,1774737042490,-1889.39669243,0.00015342,2]
[419003061,1774737042499,-1465.66697892,0.00015342,2]
[419003062,1774737042509,-2000.0,0.00015342,2]
[419003063,1774737042518,-1580.25367425,0.00015342,2]
[419003064,1774737042528,-1005.20312334,0.00015342,2]
[419003065,1774737042537,-409.38735598,0.00015342,2]
[419003066,1774737042547,-2000.0,0.00015342,2]
[419003067,1774737042556,-436.53,0.00015398,2]
[419003068,1774737042566,-959.64475997,0.00015407,2]
[419003069,1774737042575,-160.0,0.00015407,2]
[419003070,1774737042585,-160.0,0.00015407,2]
[419003071,1774737042594,-217.36918776,0.00015408,2]
[419003072,1774737042603,-249.86,0.00015414,2]
[419003073,1774737042613,-5888.0,0.00015436,2]
[419003074,1774737042623,-579.65116737,0.00015447,2]
[419003075,1774737042632,-1000.0,0.000155,2]
[419003076,1774737042641,-1000.0,0.000155,2]
[419003077,1774737042651,-1000.0,0.000155,2]
[419003078,1774737042660,-1000.0,0.000155,2]
[419003079,1774737042669,-1000.0,0.000155,2]
[419003080,1774737042678,-1000.0,0.000155,2]
[419003081,1774737042687,-1000.0,0.000155,2]
[419003082,1774737042696,-1000.0,0.000155,2]
[419003083,1774737042705,-1000.0,0.000155,2]
[419003084,1774737042714,-1000.0,0.000155,2]
[419003085,1774737042723,-766.149,0.000155,2]
[419003086,1774737042732,-154.46961228,0.00015517,2]
[419003087,1774737042742,-14423.09760392,0.00015524,2]
[419003088,1774737042752,-34013.61326386,0.00015548,2]
[419003089,1774737042762,-565.0,0.00015566,2]
[419003090,1774737042771,-1204.37,0.000156,2]
[419003091,1774737042780,-565.0,0.00015619,2]
[419003092,1774737042790,-5888.0,0.00015667,2]
[419003093,1774737042799,-547.75,0.00015753,2]
[419003094,1774737042808,-3292.0,0.00015773,2]
[419003095,1774737042817,-1959.26279,0.0001584,2]
[419003096,1774737042827,-1959.26279,0.0001584,2]
[419003097,1774737042836,-1959.2628,0.0001585,2]
[419003098,1774737042846,-500.0,0.00015871,2]
[419003099,1774737042855,-500.0,0.00015872,2]
[419003100,1774737042864,-200.0,0.00015872,2]
[419003101,1774737042874,-2500.0,0.0001589,2]
[419003102,1774737042884,-1500.0,0.0001589,2]
[419003103,1774737042893,-14423.09760392,0.00015895,2]
[419003104,1774737042903,-206.37595366,0.00015895,2]
[419003105,1774737043011,-665.85,0.00015899,2]
[419003106,1774737043021,-790.62,0.000159,2]
[419003107,1774737043031,-661.64,0.000159,2]
[419003108,1774737043042,-7518.26,0.000159,2]
[419003109,1774737043052,-34013.61326386,0.000159,2]
[419003110,1774737043062,-499.89808897,0.000159,2]
[419003111,1774737043072,-150.7654,0.000159,2]
[419003112,1774737043082,-579.65116737,0.000159,2]
[419003113,1774737043092,-217.36918776,0.000159,2]
[419003114,1774737043102,-1402.0,0.000159,5]
[419003115,1774737043113,-1171.0,0.000159,5]
[419003116,1774737043123,-271.0,0.00015944,2]
[419003117,1774737043133,-5000.0,0.0001596,2]
[419003118,1774737043143,-297.0184146,0.0001599,2]
[419003119,1774737043153,-297.0184146,0.0001599,2]
[419003120,1774737043163,-500.0,0.00015994,2]
[419003122,1774737043173,-500.0,0.00015994,2]
[419003123,1774737043182,-94545.4100444,0.00015995,2]
[419003124,1774737043192,-5845.681651,0.00015995,2]
[419003125,1774737043202,-20738.3109683,0.00015995,2]
[419003126,1774737043211,-24122.563741,0.00015995,2]
[419003127,1774737043221,-7232.5657835,0.00015995,2]
[419003128,1774737043232,-179.9501794,0.00015995,2]
[419003129,1774737043242,-1152.7160651,0.00015995,2]
[419003130,1774737043251,-151.0,0.00015997,2]
[419003131,1774737043261,-151.0,0.00015997,2]
[419003132,1774737043271,-666.0,0.00015999,2]
[419003133,1774737043280,-500.0,0.00015999,2]
[419003134,1774737043291,-500.0,0.00015999,2]
[419003135,1774737043300,-500.0,0.00015999,2]
[419003136,1774737043310,-295.00545773,0.00015999,2]
[419003137,1774737043319,-500.0,0.00015999,2]
[419003138,1774737043328,-500.0,0.00015999,2]
[419003139,1774737043338,-206.95112848,0.00015999,2]
[419003140,1774737043349,-616.12,0.00015999,2]
[419003141,1774737043359,-616.12,0.00015999,2]
[419003142,1774737043368,-616.12,0.00015999,2]
[419003143,1774737043377,-616.12,0.00015999,2]
[419003144,1774737043387,-616.12,0.00015999,2]
[419003145,1774737043397,-616.12,0.00015999,2]
[419003146,1774737043406,-616.12,0.00015999,2]
[419003147,1774737043416,-616.12,0.00015999,2]
[419003148,1774737043426,-616.12,0.00015999,2]
[419003149,1774737043436,-616.12,0.00015999,2]
[419003150,1774737043446,-616.12,0.00015999,2]
[419003151,1774737043456,-616.12,0.00015999,2]
[419003152,1774737043466,-616.30991446,0.00015999,2]
[419003153,1774737043480,-665.85,0.00015999,2]
[419003154,1774737043490,-665.85,0.00015999,2]
[419003155,1774737043500,-665.85,0.00015999,2]
[419003156,1774737043510,-665.85,0.00015999,2]
[419003157,1774737043520,-666.04503174,0.00015999,2]
[419003158,1774737043529,-6998528.31395473,0.00016,2]
[419003159,1774737043568,-5399.6305793,0.0001433,2]
[419003160,1774737043578,-1380.7694207,0.00016,2]
[419003161,1774737043790,-708947.76464014,0.00016,2]
[419003162,1774737043799,-151.0,0.00016,2]
[419003163,1774737043809,-342.79836072,0.00016,2]
[419003164,1774737043819,-166.6,0.00016,2]
[419003165,1774737043828,-2000.0,0.00016,2]
[419003166,1774737043838,-200.0,0.00016,2]
[419003167,1774737043848,-1523.0,0.00016,2]
[419003168,1774737043858,-151.0,0.00016,2]
[419003169,1774737043869,-1523.0,0.00016,2]
[419003170,1774737043879,-151.0,0.00016,2]
[419003171,1774737043889,-160.28272017,0.00016,2]
[419003172,1774737043898,-1523.0,0.00016,2]
[419003173,1774737043908,-151.0,0.00016,2]
[419003174,1774737043918,-1523.0,0.00016,2]
[419003175,1774737043928,-151.0,0.00016,2]
[419003176,1774737043938,-1523.0,0.00016,2]
[419003177,1774737043948,-151.0,0.00016,2]
[419003178,1774737043957,-1523.0,0.00016,2]
[419003179,1774737043968,-151.0,0.00016,2]
[419003180,1774737043977,-1523.0,0.00016,2]
[419003181,1774737043987,-151.0,0.00016,2]
[419003182,1774737043996,-1523.0,0.00016,2]
[419003183,1774737044006,-151.0,0.00016,2]
[419003184,1774737044015,-1523.0,0.00016,2]
[419003185,1774737044025,-1523.0,0.00016,2]
[419003186,1774737044035,-1523.0,0.00016,2]
[419003187,1774737044045,-1523.0,0.00016,2]
[419003189,1774737044055,-1523.0,0.00016,2]
[419003190,1774737044065,-1523.0,0.00016,2]
[419003191,1774737044075,-1523.0,0.00016,2]
[419003192,1774737044085,-1000.0,0.00016,2]
[419003193,1774737044094,-1611.57442331,0.00016,2]
[419003194,1774737044104,-1000.0,0.00016,2]
[419003195,1774737044114,-1000.0,0.00016,2]
[419003196,1774737044124,-1000.0,0.00016,2]
[419003197,1774737044134,-1131.61932121,0.00016,2]
[419003198,1774737044143,-200.0,0.00016,2]
[419003199,1774737044153,-151.0,0.00016,2]
[419003200,1774737044162,-150.93585401,0.00016,2]
[419003201,1774737044172,-150.0,0.00016,2]
[419003202,1774737044182,-151.0,0.00016,2]
[419003203,1774737044192,-151.0,0.00016,2]
[419003204,1774737044202,-151.0,0.00016,2]
[419003205,1774737044212,-1959.2628,0.00016,2]
[419003206,1774737044222,-1959.26279,0.00016,2]
[419003207,1774737044233,-1959.26279,0.00016,2]
[419003208,1774737044242,-503.176288,0.00016,2]
[419003209,1774737044251,-503.176288,0.00016,2]
[419003210,1774737044262,-503.176288,0.00016,2]
[419003211,1774737044271,-503.176288,0.00016,2]
[419003212,1774737044281,-294.842392,0.00016,2]
[419003213,1774737044290,-294.842392,0.00016,2]
[419003214,1774737044300,-294.842392,0.00016,2]
[419003215,1774737044309,-294.842392,0.00016,2]
[419003216,1774737044318,-151.0,0.00016,2]
[419003217,1774737044328,-151.0,0.00016,2]
[419003218,1774737044338,-151.0,0.00016,2]
[419003219,1774737044347,-151.0,0.00016,2]
[419003221,1774737044357,-5888.0,0.00016064,2]
[419003222,1774737044367,-217.84187082,0.00016064,2]
[419003223,1774737044376,-736.0,0.0001607,2]
[419003224,1774737044386,-440.0,0.00016111,2]
[419003225,1774737044396,-366.0,0.00016111,2]
[419003226,1774737044405,-3381.89,0.00016116,2]
[419003227,1774737044416,-5399.6305793,0.00016134,2]
[419003228,1774737044425,-656.0,0.00016142,2]
[419003229,1774737044435,-150.0,0.00016159,2]
[419003230,1774737044444,-240.0,0.00016159,2]
[419003231,1774737044455,-150.0,0.00016159,2]
[419003232,1774737044464,-150.0,0.00016159,2]
[419003233,1774737044474,-150.329,0.00016159,2]
[419003234,1774737044484,-150.0,0.00016159,2]
[419003235,1774737044494,-200.0,0.0001616,2]
[419003236,1774737044503,-656.0,0.00016168,2]
[419003237,1774737044513,-350.0,0.00016189,3]
[419003238,1774737044522,-1600.0,0.00016212,2]
[419003239,1774737044531,-5888.0,0.00016217,2]
[419003240,1774737044540,-2000.0,0.00016226,2]
[419003241,1774737044549,-5536.0,0.00016261,2]
[419003242,1774737044559,-565.0,0.00016279,2]
[419003243,1774737044569,-4000.0,0.00016282,2]
[419003244,1774737044579,-150.0,0.000163,2]
[419003245,1774737044588,-200.0,0.00016322,2]
[419003246,1774737044598,-565.0,0.00016357,2]
[419003247,1774737044608,-6011.0,0.00016376,2]
[419003248,1774737044617,-3517.0,0.00016376,2]
[419003249,1774737044626,-5536.0,0.00016402,2]
[419003250,1774737044636,-5536.0,0.00016417,2]
[419003251,1774737044646,-296.29,0.00016438,2]
[419003252,1774737044656,-547.75,0.00016438,2]
[419003253,1774737044665,-151.0,0.00016438,2]
[419003254,1774737044676,-151.0,0.00016438,2]
[419003255,1774737044685,-500.0,0.00016438,2]
[419003256,1774737044695,-5536.0,0.00016456,2]
[419003257,1774737044704,-565.0,0.00016467,2]
[419003258,1774737044714,-671.40174411,0.0001647,2]
[419003259,1774737044723,-1262.0,0.00016471,2]
[419003260,1774737044733,-150.143,0.00016471,2]
[419003261,1774737044742,-940.085,0.00016471,2]
[419003262,1774737044752,-1216.0,0.00016471,2]
[419003263,1774737044762,-200.0,0.00016485,2]
[419003264,1774737044771,-5536.0,0.00016594,2]
[419003265,1774737044780,-565.0,0.00016598,2]
[419003266,1774737044790,-437.29,0.000166,2]
[419003267,1774737044799,-2344.91861912,0.00016617,2]
[419003268,1774737044809,-5536.0,0.00016624,2]
[419003269,1774737044818,-249.86,0.0001663,2]
[419003270,1774737044827,-200.0,0.0001665,2]
[419003271,1774737044837,-4000.0,0.0001667,2]
[419003272,1774737044847,-271.706478,0.00016673,7]
[419003273,1774737044857,-5888.0,0.00016675,2]
[419003274,1774737044866,-565.0,0.00016676,2]
[419003275,1774737044875,-5536.0,0.00016679,2]
[419003276,1774737044885,-326.578606,0.00016728,7]
[419003277,1774737044895,-350.0,0.00016777,4]
[419003278,1774737044904,-2000.0,0.000168,2]
[419003279,1774737044913,-5536.0,0.00016825,2]
[419003280,1774737044923,-509.0,0.0001687,4]
[419003281,1774737044932,-150.0,0.00016888,2]
[419003282,1774737044941,-565.0,0.00016899,2]
[419003283,1774737044951,-2000.0,0.000169,2]
[419003284,1774737044960,-166.59,0.00016902,2]
[419003285,1774737044970,-565.0,0.00016924,2]
[419003286,1774737044979,-565.0,0.00016952,2]
[419003287,1774737044988,-5958.67359897,0.00017,2]
[419003288,1774737044997,-350.0,0.00017,2]
[419003289,1774737045007,-168.08464442,0.00017,2]
[419003290,1774737045016,-350.0,0.00017011,5]
[419003291,1774737045026,-4000.0,0.00017058,2]
[419003292,1774737045035,-2000.0,0.00017111,2]
[419003293,1774737045044,-504.918625,0.00017125,7]
[419003294,1774737045054,-294.8,0.00017218,2]
[419003295,1774737045063,-250.145034,0.00017291,7]
[419003296,1774737045171,-235.30570927,0.00017314,2]
[419003297,1774737045182,-4609.0,0.0001735,2]
[419003298,1774737045191,-283.141826,0.00017396,7]
[419003299,1774737045200,-218.0,0.00017396,2]
[419003300,1774737045210,-187.0,0.00017396,2]
[419003301,1774737045219,-350.0,0.00017463,4]
[419003302,1774737045228,-627.07849959,0.00017476,2]
[419003303,1774737045238,-1252.0,0.0001748,2]
[419003304,1774737045248,-350.0,0.00017492,5]
[419003305,1774737045257,-1204.37,0.000175,2]
[419003306,1774737045267,-355.53423949,0.00017505,5]
[419003307,1774737045276,-214.692551,0.00017521,7]
[419003308,1774737045286,-206.222309,0.00017533,7]
[419003309,1774737045296,-150.0,0.0001755,2]
[419003310,1774737045306,-299.148323,0.00017552,2]
[419003311,1774737045316,-1600.0,0.00017686,2]
[419003312,1774737045324,-790.62,0.000178,2]
[419003313,1774737045334,-661.64,0.000178,2]
[419003314,1774737045344,-7518.26,0.000178,2]
[419003315,1774737045354,-151.1495,0.000178,2]
[419003316,1774737045364,-1000.0,0.000178,2]
[419003317,1774737045373,-166.6,0.000179,2]
[419003318,1774737045382,-157.0,0.00017919,2]
[419003319,1774737045392,-5399.6305793,0.00017938,2]
[419003320,1774737045401,-166.59,0.00017958,2]
[419003321,1774737045411,-166.57,0.00018172,2]
[419003322,1774737045420,-434.560307,0.00018182,7]
[419003323,1774737045430,-7232.5657835,0.00018226,2]
[419003324,1774737045439,-168.12,0.00018361,2]
[419003325,1774737045448,-1744.82,0.00018461,2]
[419003326,1774737045459,-166.57,0.00018499,2]
[419003327,1774737045469,-312.0,0.000185,2]
[419003328,1774737045479,-953.0,0.000185,2]
[419003329,1774737045488,-168.12,0.0001851,2]
[419003330,1774737045498,-500.0,0.0001863,2]
[419003331,1774737045508,-2000.0,0.00018666,2]
[419003332,1774737045518,-218.0,0.00018766,2]
[419003333,1774737045528,-166.57,0.00018826,2]
[419003334,1774737045537,-1156.0,0.00018845,5]
[419003335,1774737045547,-271.706478,0.00018848,7]
[419003336,1774737045556,-437.29,0.000189,2]
[419003337,1774737045566,-326.578606,0.0001891,7]
[419003338,1774737045576,-157.0,0.00018919,2]
[419003339,1774737045586,-150.0,0.00018999,2]
[419003340,1774737045595,-287.37752639,0.00018999,2]
[419003341,1774737045605,-79860.85141014,0.00019,2]
[419003342,1774737045615,-170.45335128,0.00019,2]
[419003343,1774737045624,-190.07237035,0.00019,2]
[419003344,1774737045633,-400.0,0.00019,2]
[419003345,1774737045643,-500.0,0.00019014,2]
[419003346,1774737045652,-166.59,0.00019014,2]
[419003347,1774737045661,-1786.0,0.00019027,2]
[419003348,1774737045671,-191.707751,0.00019045,7]
[419003349,1774737045681,-399.261636,0.00019045,7]
[419003350,1774737045691,-6453.0,0.00019085,2]
[419003351,1774737045700,-3818.32173057,0.00019152,2]
[419003352,1774737045710,-150.0,0.00019159,2]
[419003353,1774737045719,-150.0,0.00019159,2]
[419003354,1774737045728,-741.84,0.00019178,2]
[419003355,1774737045738,-151.0,0.00019178,2]
[419003356,1774737045747,-151.0,0.00019178,2]
[419003357,1774737045757,-151.0,0.00019178,2]
[419003358,1774737045767,-2000.0,0.000192,2]
[419003359,1774737045777,-650.0,0.00019306,2]
[419003360,1774737045787,-650.0,0.00019306,2]
[419003361,1774737045797,-650.0,0.00019306,2]
[419003362,1774737045806,-650.0,0.00019306,2]
[419003363,1774737045816,-650.0,0.00019306,2]
[419003364,1774737045825,-650.0,0.00019306,2]
[419003365,1774737045835,-650.0,0.00019306,2]
[419003366,1774737045844,-650.0,0.00019306,2]
[419003367,1774737045853,-650.0,0.00019306,2]
[419003368,1774737045863,-585.0,0.00019306,2]
[419003369,1774737045872,-5890.2241783,0.00019357,2]
[419003370,1774737045882,-504.918625,0.00019359,7]
[419003371,1774737045891,-3517.0,0.00019376,2]
[419003372,1774737045900,-5382.4715107,0.00019446,2]
[419003373,1774737045909,-4627.3426475,0.00019446,2]